fUST/lending_fUST_20250817
["ID","MTS","AMOUNT","RATE_DAILY","PERIOD"]
[379931793,1755442268435,-480.0,0.00020561,2]
[379931795,1755442268444,-659.52,0.00020561,2]
[379931797,1755442268454,-440.0,0.00020561,2]
[379931799,1755442268463,-2225.78,0.00020561,2]
[379931801,1755442268472,-550.59562818,0.00020561,2]
[379931803,1755442268481,-1000.32,0.00020561,2]
[379931805,1755442268490,-480.0,0.00020561,2]
[379931807,1755442268499,-1436.82,0.00020561,2]
[379931809,1755442268508,-6061.46,0.00020561,2]
[379931811,1755442268518,-1175.2,0.00020561,2]
[379931813,1755442268527,-763.93,0.00020561,2]
[379931815,1755442268536,-526.35,0.00020561,2]
[379931817,1755442268545,-480.0,0.00020561,2]
[379931818,1755442268555,-480.0,0.00020561,2]
[379931820,1755442268564,-480.0,0.00020561,2]
[379931822,1755442268573,-695.09,0.00020561,2]
[379931824,1755442268582,-715.83,0.00020561,2]
[379931826,1755442268591,-494.32,0.00020561,2]
[379931828,1755442268600,-480.0,0.00020561,2]
[379931830,1755442268613,-480.0,0.00020561,2]
[379931832,1755442268622,-504.66,0.00020561,2]
[379931834,1755442268631,-168.0,0.00020582,2]
[379931836,1755442268641,-2000.0,0.00020595,2]
[379931838,1755442268650,-206.0,0.000206,2]
[379931840,1755442268660,-720.0,0.0002061,20]
[379931842,1755442268669,-600.0,0.00020625,2]
[379931852,1755442268751,-159.71095547,0.0002063,2]
[379931854,1755442268769,-151.0,0.00020636,2]
[379931856,1755442268782,-658.0,0.00020636,2]
[379931858,1755442268793,-638.72,0.00020643,2]
[379931860,1755442268802,-972.0,0.00020644,2]
[379931862,1755442268812,-2153.0,0.00020644,2]
[379931864,1755442268821,-637.0,0.00020644,2]
[379931866,1755442268830,-308.70536724,0.00020651,2]
[379931868,1755442268840,-500.0,0.00020651,2]
[379931870,1755442268849,-480.0,0.00020656,2]
[379931872,1755442268858,-1819.3,0.00020656,2]
[379931874,1755442268869,-480.0,0.00020657,2]
[379931876,1755442268878,-3256.49,0.00020657,2]
[379931878,1755442268888,-227.68549792,0.00020658,2]
[379931880,1755442268898,-480.0,0.00020658,2]
[379931882,1755442268907,-480.0,0.00020658,2]
[379931884,1755442268917,-698.95,0.00020658,2]
[379931886,1755442268926,-480.0,0.00020658,2]
[379931888,1755442268935,-480.0,0.00020658,2]
[379931890,1755442268945,-687.45,0.00020658,2]
[379931892,1755442268954,-480.0,0.00020658,2]
[379931894,1755442268964,-549.85,0.00020658,2]
[379931896,1755442268973,-480.0,0.00020658,2]
[379931898,1755442268983,-971.72,0.00020658,2]
[379931900,1755442268993,-480.0,0.00020658,2]
[379931902,1755442269002,-480.0,0.00020658,2]
[379931904,1755442269011,-573.88,0.00020658,2]
[379931906,1755442269021,-480.0,0.00020658,2]
[379931908,1755442269031,-719.18,0.00020658,2]
[379931910,1755442269040,-480.0,0.00020658,2]
[379931912,1755442269049,-480.0,0.00020658,2]
[379931914,1755442269058,-480.0,0.00020658,2]
[379931916,1755442269069,-584.35,0.00020658,2]
[379931918,1755442269078,-480.0,0.00020658,2]
[379931920,1755442269087,-480.0,0.00020658,2]
[379931922,1755442269097,-486.41,0.00020658,2]
[379931923,1755442269106,-492.35,0.00020658,2]
[379931925,1755442269115,-480.0,0.00020659,2]
[379931927,1755442269124,-480.0,0.00020659,2]
[379931929,1755442269133,-894.92,0.00020659,2]
[379931931,1755442269143,-480.0,0.00020659,2]
[379931933,1755442269153,-480.0,0.00020659,2]
[379931935,1755442269162,-480.0,0.00020659,2]
[379931937,1755442269172,-7675.82,0.00020659,2]
[379931939,1755442269181,-990.44,0.00020659,2]
[379931941,1755442269191,-5032.79,0.00020659,2]
[379931943,1755442269200,-480.0,0.0002066,2]
[379931945,1755442269210,-480.0,0.0002066,2]
[379931947,1755442269219,-788.99,0.0002066,2]
[379931949,1755442269229,-613.42,0.0002066,2]
[379931951,1755442269239,-581.88,0.0002066,2]
[379931953,1755442269249,-191.1582669,0.0002066,2]
[379931955,1755442269259,-1673.56,0.0002066,2]
[379931957,1755442269268,-2358.67,0.0002066,2]
[379931959,1755442269278,-301.86107626,0.00020674,2]
[379931961,1755442269287,-2000.0,0.00020683,2]
[379931964,1755442269297,-2000.0,0.00020683,2]
[379931965,1755442269306,-360.0,0.00020696,2]
[379931967,1755442269315,-308.0,0.000207,2]
[379931969,1755442269325,-420.5,0.00020716,2]
[379931971,1755442269335,-151.0,0.00020721,2]
[379931973,1755442269344,-151.0,0.00020721,2]
[379931975,1755442269354,-151.0,0.00020721,2]
[379931977,1755442269363,-151.0,0.00020721,2]
[379931980,1755442269375,-493.313819,0.00020721,2]
[379931982,1755442269384,-493.313819,0.00020721,2]
[379931984,1755442269394,-151.0,0.00020721,2]
[379931985,1755442269404,-151.0,0.00020721,2]
[379931987,1755442269413,-151.0,0.00020721,2]
[379931989,1755442269422,-151.0,0.00020721,2]
[379931991,1755442269431,-273.692923,0.00020721,2]
[379931993,1755442269441,-273.692923,0.00020721,2]
[379931995,1755442269450,-684.232308,0.00020721,2]
[379931997,1755442269460,-218.189707,0.00020721,2]
[379931999,1755442269470,-151.0,0.00020722,2]
[379932001,1755442269480,-151.0,0.00020722,2]
[379932003,1755442269490,-227.68549792,0.0002074,2]
[379932005,1755442269499,-1053.47615083,0.00020741,2]
[379932008,1755442269510,-1762.0,0.00020747,2]
[379932010,1755442269520,-161.0,0.00020747,2]
[379932012,1755442269530,-1762.0,0.00020747,2]
[379932013,1755442269539,-161.0,0.00020747,2]
[379932015,1755442269755,-1762.0,0.00020747,2]
[379932017,1755442269765,-161.0,0.00020747,2]
[379932020,1755442269775,-161.0,0.00020747,2]
[379932022,1755442269786,-161.0,0.00020747,2]
[379932023,1755442269795,-156.14061222,0.00020747,2]
[379932025,1755442269804,-1762.0,0.00020747,2]
[379932027,1755442269814,-906.52586112,0.00020747,2]
[379932029,1755442269823,-326.0,0.00020748,2]
[379932031,1755442269833,-326.0,0.00020748,2]
[379932033,1755442269842,-326.0,0.00020748,2]
[379932035,1755442269851,-326.0,0.00020748,2]
[379932037,1755442269860,-326.0,0.00020748,2]
[379932039,1755442269870,-326.0,0.00020748,2]
[379932041,1755442269879,-326.0,0.00020748,2]
[379932043,1755442269888,-326.0,0.00020748,2]
[379932045,1755442269898,-470.32695641,0.00020748,2]
[379932047,1755442269908,-168.0,0.00020754,2]
[379932049,1755442269918,-220.112,0.00020756,2]
[379932051,1755442269928,-289.974,0.00020756,2]
[379932053,1755442269937,-150.0,0.00020756,2]
[379932055,1755442269946,-150.0,0.00020756,2]
[379932057,1755442269956,-150.0,0.00020756,2]
[379932059,1755442269966,-150.0,0.00020756,2]
[379932061,1755442269975,-176.825,0.00020756,2]
[379932063,1755442269985,-168.0,0.00020757,2]
[379932065,1755442269994,-164.471479,0.00020764,2]
[379932067,1755442270004,-164.471479,0.00020764,2]
[379932069,1755442270013,-170.005422,0.00020764,2]
[379932071,1755442270022,-170.005422,0.00020764,2]
[379932073,1755442270031,-151.0,0.00020764,2]
[379932075,1755442270041,-151.0,0.00020796,2]
[379932077,1755442270050,-151.0,0.00020796,2]
[379932079,1755442270060,-167.8,0.00020796,2]
[379932081,1755442270069,-167.8,0.00020796,2]
[379932083,1755442270079,-151.0,0.00020796,2]
[379932085,1755442270088,-326.0,0.0002081,2]
[379932087,1755442270097,-326.0,0.0002081,2]
[379932089,1755442270107,-951.6485,0.00020812,2]
[379932091,1755442270117,-951.6485,0.00020812,2]
[379932093,1755442270127,-151.0,0.00020812,2]
[379932095,1755442270136,-397.7164,0.00020812,2]
[379932097,1755442270146,-78903.80539617,0.00020816,2]
[379932099,1755442270155,-389.09212,0.00020816,2]
[379932101,1755442270164,-389.09212,0.00020816,2]
[379932103,1755442270173,-151.0,0.00020816,2]
[379932105,1755442270184,-151.0,0.00020816,2]
[379932107,1755442270194,-151.0,0.00020816,2]
[379932109,1755442270204,-151.0,0.00020816,2]
[379932111,1755442270213,-151.0,0.00020816,2]
[379932113,1755442270223,-151.0,0.00020816,2]
[379932115,1755442270232,-151.0,0.00020816,2]
[379932117,1755442270241,-151.0,0.00020816,2]
[379932126,1755442270250,-204.815284,0.00020816,2]
[379932129,1755442270338,-151.0,0.00020816,2]
[379932131,1755442270366,-151.0,0.00020816,2]
[379932132,1755442270414,-151.0,0.00020816,2]
[379932134,1755442270441,-204.815284,0.00020816,2]
[379932136,1755442270453,-182.328358,0.00020816,2]
[379932138,1755442270462,-323.570503,0.00020816,2]
[379932140,1755442270472,-323.570503,0.00020816,2]
[379932142,1755442270481,-151.0,0.00020816,2]
[379932144,1755442270490,-173.064335,0.00020816,2]
[379932146,1755442270500,-173.064335,0.00020816,2]
[379932148,1755442270510,-205.658192,0.00020816,2]
[379932150,1755442270519,-151.0,0.00020816,2]
[379932152,1755442270528,-286.886124,0.00020816,2]
[379932154,1755442270538,-286.886124,0.00020816,2]
[379932156,1755442270548,-291.603154,0.00020819,2]
[379932158,1755442270558,-300.010742,0.00020821,2]
[379932160,1755442270567,-687.648653,0.00020821,2]
[379932162,1755442270576,-687.648653,0.00020821,2]
[379932164,1755442270585,-500.0,0.00020822,2]
[379932166,1755442270594,-151.000001,0.00020822,2]
[379932168,1755442270603,-151.0,0.00020822,2]
[379932170,1755442270616,-151.0,0.00020822,2]
[379932172,1755442270625,-151.0,0.00020822,2]
[379932174,1755442270634,-151.0,0.00020822,2]
[379932176,1755442270643,-872.0,0.00020822,2]
[379932178,1755442270652,-151.0,0.00020822,2]
[379932180,1755442270662,-151.0,0.00020822,2]
[379932182,1755442270671,-500.0,0.00020822,2]
[379932184,1755442270681,-154.48406329,0.00020822,2]
[379932186,1755442270693,-606.08562722,0.00020822,2]
[379932188,1755442270702,-151.0,0.00020822,2]
[379932190,1755442270711,-500.0,0.00020822,2]
[379932192,1755442270720,-500.0,0.00020822,2]
[379932193,1755442270730,-604.0,0.00020822,2]
[379932194,1755442270739,-151.0,0.00020822,2]
[379932195,1755442270748,-151.0,0.00020822,2]
[379932196,1755442270757,-151.0,0.00020822,2]
[379932197,1755442270767,-500.0,0.00020822,2]
[379932198,1755442270777,-500.0,0.00020822,2]
[379932199,1755442270787,-151.10329791,0.00020822,2]
[379932200,1755442270797,-278.560994,0.00020822,2]
[379932201,1755442270806,-151.0,0.00020822,2]
[379932202,1755442270815,-151.0,0.00020822,2]
[379932203,1755442270824,-151.0,0.00020822,2]
[379932204,1755442270834,-236.598099,0.00020822,2]
[379932205,1755442270843,-466.476595,0.00020822,2]
[379932206,1755442270853,-466.476595,0.00020822,2]
[379932207,1755442270862,-151.0,0.00020822,2]
[379932208,1755442270871,-151.0,0.00020822,2]
[379932209,1755442270880,-527.36,0.00020835,2]
[379932210,1755442270888,-912.72,0.00020835,2]
[379932211,1755442270898,-480.0,0.00020835,2]
[379932212,1755442270907,-563.11,0.00020835,2]
[379932213,1755442270917,-480.0,0.00020835,2]
[379932214,1755442270926,-480.0,0.00020835,2]
[379932215,1755442270936,-591.29,0.00020835,2]
[379932216,1755442270945,-480.0,0.00020835,2]
[379932217,1755442270954,-1163.69,0.00020835,2]
[379932218,1755442270963,-480.0,0.00020835,2]
[379932219,1755442270973,-506.66,0.00020835,2]
[379932220,1755442270982,-480.0,0.00020835,2]
[379932221,1755442270992,-908.19,0.00020835,2]
[379932222,1755442271012,-928.64,0.00020835,2]
[379932223,1755442271028,-480.0,0.00020835,2]
[379932224,1755442271046,-480.0,0.00020835,2]
[379932226,1755442271065,-1949.06,0.00020835,2]
[379932228,1755442271083,-709.65,0.00020835,2]
[379932231,1755442271100,-480.0,0.00020835,2]
[379932234,1755442271117,-659.52,0.00020835,2]
[379932236,1755442271132,-2225.78,0.00020835,2]
[379932239,1755442271148,-1000.32,0.00020835,2]
[379932242,1755442271168,-480.0,0.00020835,2]
[379932245,1755442271185,-1436.82,0.00020835,2]
[379932248,1755442271198,-6061.46,0.00020835,2]
[379932251,1755442271217,-1175.2,0.00020835,2]
[379932253,1755442271231,-763.93,0.00020835,2]
[379932256,1755442271246,-526.35,0.00020835,2]
[379932258,1755442271260,-480.0,0.00020835,2]
[379932261,1755442271275,-480.0,0.00020835,2]
[379932263,1755442271290,-695.09,0.00020835,2]
[379932266,1755442271304,-715.83,0.00020835,2]
[379932268,1755442271319,-494.32,0.00020835,2]
[379932271,1755442271333,-480.0,0.00020835,2]
[379932273,1755442271347,-480.0,0.00020835,2]
[379932276,1755442271362,-504.66,0.00020835,2]
[379932278,1755442271377,-206.0,0.0002084,2]
[379932281,1755442271392,-502.775489,0.00020848,2]
[379932283,1755442271408,-502.775489,0.00020848,2]
[379932286,1755442271423,-227.68549792,0.00020849,2]
[379932288,1755442271438,-151.0,0.00020852,2]
[379932291,1755442271454,-151.0,0.00020852,2]
[379932294,1755442271468,-151.0,0.00020852,2]
[379932296,1755442271484,-151.0,0.00020852,2]
[379932299,1755442271499,-600.0,0.00020852,2]
[379932301,1755442271513,-420.5,0.00020884,3]
[379932304,1755442271526,-684.232308,0.00020898,2]
[379932306,1755442271541,-1070.0,0.000209,3]
[379932309,1755442271556,-645.0,0.000209,2]
[379932311,1755442271570,-168.0,0.00020903,2]
[379932314,1755442271584,-227.68549797,0.00020904,2]
[379932316,1755442271599,-227.68549792,0.00020904,2]
[379932319,1755442271615,-159.71095547,0.00020904,2]
[379932321,1755442271630,-8827.72446853,0.00020907,2]
[379932324,1755442271644,-151.0,0.00020907,2]
[379932326,1755442271659,-151.0,0.00020907,2]
[379932329,1755442271673,-151.0,0.00020907,2]
[379932331,1755442271688,-151.0,0.00020907,2]
[379932333,1755442271703,-151.0,0.00020907,2]
[379932336,1755442271717,-781.344543,0.00020907,2]
[379932338,1755442271732,-781.344543,0.00020907,2]
[379932341,1755442271747,-151.0,0.00020907,2]
[379932343,1755442271761,-151.0,0.00020907,2]
[379932346,1755442271777,-151.0,0.00020907,2]
[379932349,1755442271792,-273.452734,0.00020907,2]
[379932351,1755442271806,-273.452734,0.00020907,2]
[379932354,1755442271820,-151.0,0.00020907,2]
[379932356,1755442271835,-658.0,0.00020924,2]
[379932359,1755442271849,-480.0,0.0002093,2]
[379932361,1755442271865,-1819.3,0.0002093,2]
[379932364,1755442271879,-329.19591637,0.00020931,2]
[379932366,1755442271894,-3256.49,0.00020931,2]
[379932369,1755442271908,-480.0,0.00020932,2]
[379932371,1755442271923,-698.95,0.00020932,2]
[379932385,1755442272048,-376.0,0.00020932,2]
[379932387,1755442272058,-480.0,0.00020932,2]
[379932389,1755442272067,-687.45,0.00020932,2]
[379932391,1755442272076,-480.0,0.00020932,2]
[379932392,1755442272086,-549.85,0.00020932,2]
[379932394,1755442272095,-480.0,0.00020932,2]
[379932396,1755442272105,-971.72,0.00020932,2]
[379932398,1755442272114,-572.29,0.00020932,2]
[379932400,1755442272123,-480.0,0.00020932,2]
[379932402,1755442272132,-573.88,0.00020932,2]
[379932404,1755442272141,-480.0,0.00020932,2]
[379932406,1755442272152,-719.18,0.00020932,2]
[379932408,1755442272162,-480.0,0.00020932,2]
[379932410,1755442272171,-584.35,0.00020932,2]
[379932412,1755442272181,-480.0,0.00020932,2]
[379932414,1755442272190,-480.0,0.00020932,2]
[379932416,1755442272199,-492.35,0.00020932,2]
[379932418,1755442272208,-480.0,0.00020933,2]
[379932420,1755442272217,-480.0,0.00020933,2]
[379932422,1755442272227,-894.92,0.00020933,2]
[379932424,1755442272237,-586.94,0.00020933,2]
[379932426,1755442272246,-540.84,0.00020933,2]
[379932428,1755442272256,-480.0,0.00020933,2]
[379932430,1755442272265,-7675.82,0.00020933,2]
[379932432,1755442272275,-990.44,0.00020933,2]
[379932434,1755442272285,-5032.79,0.00020933,2]
[379932436,1755442272294,-480.0,0.00020934,2]
[379932438,1755442272303,-788.99,0.00020934,2]
[379932440,1755442272313,-613.42,0.00020934,2]
[379932442,1755442272322,-581.88,0.00020934,2]
[379932444,1755442272332,-1673.56,0.00020934,2]
[379932446,1755442272342,-2358.67,0.00020934,2]
[379932448,1755442272352,-151.0,0.00020936,2]
[379932450,1755442272363,-151.0,0.00020936,2]
[379932452,1755442272373,-151.0,0.00020936,2]
[379932454,1755442272382,-160.226413,0.00020936,2]
[379932456,1755442272392,-151.0,0.00020937,2]
[379932458,1755442272402,-298.110417,0.00020937,2]
[379932460,1755442272412,-160.0,0.0002095,4]
[379932462,1755442272422,-221.488623,0.00020955,2]
[379932464,1755442272432,-227.68549792,0.00020959,2]
[379932466,1755442272441,-168.504209,0.00020959,3]
[379932468,1755442272452,-164.471479,0.00020962,2]
[379932470,1755442272461,-164.471479,0.00020962,2]
[379932472,1755442272472,-151.0,0.00020962,2]
[379932474,1755442272482,-170.005422,0.00020962,2]
[379932476,1755442272491,-170.005424,0.00020962,2]
[379932478,1755442272501,-151.0,0.00020962,2]
[379932480,1755442272510,-153.0,0.00020962,2]
[379932482,1755442272519,-153.0,0.00020962,2]
[379932483,1755442272529,-153.0,0.00020962,2]
[379932486,1755442272539,-153.0,0.00020962,2]
[379932487,1755442272549,-153.0,0.00020962,2]
[379932489,1755442272558,-153.0,0.00020962,2]
[379932491,1755442272570,-161.4346216,0.00020962,2]
[379932493,1755442272579,-153.0,0.00020962,2]
[379932495,1755442272589,-153.0,0.00020962,2]
[379932497,1755442272599,-153.0,0.00020962,2]
[379932499,1755442272612,-153.0,0.00020962,2]
[379932501,1755442272622,-153.0,0.00020962,2]
[379932503,1755442272631,-153.0,0.00020962,2]
[379932505,1755442272640,-153.0,0.00020962,2]
[379932507,1755442272653,-153.0,0.00020962,2]
[379932509,1755442272663,-2500.0,0.00020964,2]
[379932511,1755442272672,-1035.96537461,0.00020964,2]
[379932513,1755442272683,-2500.0,0.00020964,2]
[379932515,1755442272693,-168.0,0.00020972,2]
[379932517,1755442272702,-150.0,0.00020986,30]
[379932519,1755442272711,-168.504209,0.00020989,7]
[379932521,1755442272720,-151.0,0.0002099,2]
[379932523,1755442272729,-951.6485,0.0002099,2]
[379932525,1755442272739,-951.6485,0.0002099,2]
[379932527,1755442272748,-151.0,0.0002099,2]
[379932529,1755442272757,-151.0,0.0002099,2]
[379932530,1755442272766,-151.0,0.0002099,2]
[379932532,1755442272776,-151.0,0.0002099,2]
[379932534,1755442272785,-167.8,0.0002099,2]
[379932536,1755442272795,-167.8,0.0002099,2]
[379932538,1755442272804,-397.7164,0.0002099,2]
[379932540,1755442272813,-687.648653,0.0002099,2]
[379932542,1755442272823,-687.648653,0.0002099,2]
[379932544,1755442272832,-983.609175,0.0002099,2]
[379932546,1755442272841,-983.609175,0.0002099,2]
[379932548,1755442272851,-4422.79984237,0.00021,2]
[379932550,1755442272860,-8057.71660867,0.00021,5]
[379932552,1755442272870,-3000.0,0.00021,2]
[379932554,1755442272883,-151.0,0.00021,2]
[379932556,1755442272892,-151.0,0.00021,2]
[379932558,1755442272902,-151.0,0.00021,2]
[379932560,1755442272912,-151.0,0.00021,2]
[379932562,1755442272922,-160.226413,0.00021,2]
[379932564,1755442272932,-151.0,0.00021,2]
[379932566,1755442272943,-168.504209,0.00021,14]
[379932568,1755442272952,-168.504209,0.00021,14]
[379932570,1755442272962,-168.504209,0.00021,14]
[379932572,1755442272971,-168.504209,0.00021,14]
[379932574,1755442272980,-168.504209,0.00021,14]
[379932576,1755442272990,-1762.0,0.00021,2]
[379932578,1755442272999,-1762.0,0.00021,2]
[379932580,1755442273009,-1762.0,0.00021,2]
[379932582,1755442273018,-1762.0,0.00021,2]
[379932584,1755442273028,-326.0,0.00021,2]
[379932586,1755442273037,-326.0,0.00021,2]
[379932588,1755442273046,-326.0,0.00021,2]
[379932590,1755442273055,-326.0,0.00021,2]
[379932592,1755442273065,-326.0,0.00021,2]
[379932594,1755442273075,-326.0,0.00021,2]
[379932596,1755442273085,-326.0,0.00021,2]
[379932598,1755442273094,-326.0,0.00021,2]
[379932600,1755442273103,-326.0,0.00021,2]
[379932602,1755442273113,-326.0,0.00021,2]
[379932604,1755442273124,-326.0,0.00021,2]
[379932606,1755442273134,-282.85812007,0.00021,2]
[379932608,1755442273142,-326.0,0.00021,2]
[379932610,1755442273152,-326.0,0.00021,2]
[379932612,1755442273161,-326.0,0.00021,2]
[379932614,1755442273170,-326.0,0.00021,2]
[379932616,1755442273180,-326.0,0.00021,2]
[379932618,1755442273189,-326.0,0.00021,2]
[379932620,1755442273199,-354.573809,0.00021,10]
[379932622,1755442273208,-3000.0,0.0002101,2]
[379932624,1755442273217,-3000.0,0.0002102,2]
[379932626,1755442273227,-278.560994,0.0002102,2]
[379932628,1755442273236,-1000.0,0.00021021,2]
[379932630,1755442273245,-1000.0,0.00021021,2]
[379932632,1755442273254,-1000.0,0.00021021,2]
[379932634,1755442273264,-1000.0,0.00021021,2]
[379932636,1755442273274,-501.28714574,0.00021021,2]
[379932638,1755442273283,-1000.0,0.00021021,2]
[379932640,1755442273292,-1000.0,0.00021021,2]
[379932642,1755442273301,-1000.0,0.00021021,2]
[379932644,1755442273311,-1000.0,0.00021021,2]
[379932646,1755442273320,-1000.0,0.00021021,2]
[379932648,1755442273329,-1000.0,0.00021021,2]
[379932650,1755442273339,-1000.0,0.00021021,2]
[379932652,1755442273348,-160.63757412,0.00021021,2]
[379932654,1755442273357,-1000.0,0.00021021,2]
[379932656,1755442273366,-500.0,0.00021021,2]
[379932658,1755442273376,-1000.0,0.00021021,2]
[379932660,1755442273385,-1000.0,0.00021021,2]
[379932662,1755442273395,-1000.0,0.00021021,2]
[379932664,1755442273404,-516.42439368,0.00021021,2]
[379932666,1755442273413,-605.19263638,0.00021021,2]
[379932668,1755442273424,-1000.0,0.00021021,2]
[379932670,1755442273433,-1000.0,0.00021021,2]
[379932672,1755442273442,-1000.0,0.00021021,2]
[379932674,1755442273451,-1000.0,0.00021021,2]
[379932676,1755442273460,-1000.0,0.00021021,2]
[379932687,1755442273550,-1000.0,0.00021021,2]
[379932689,1755442273560,-1000.0,0.00021021,2]
[379932691,1755442273569,-674.90361075,0.00021021,2]
[379932693,1755442273579,-1000.0,0.00021021,2]
[379932695,1755442273588,-151.0,0.00021021,2]
[379932697,1755442273597,-151.0,0.00021021,2]
[379932699,1755442273606,-204.815284,0.00021021,2]
[379932701,1755442273620,-151.0,0.00021021,2]
[379932703,1755442273630,-151.0,0.00021021,2]
[379932705,1755442273639,-204.815284,0.00021021,2]
[379932707,1755442273649,-323.570503,0.00021021,2]
[379932709,1755442273659,-323.570503,0.00021021,2]
[379932711,1755442273668,-151.0,0.00021021,2]
[379932713,1755442273677,-173.064335,0.00021021,2]
[379932715,1755442273686,-173.064341,0.00021021,2]
[379932717,1755442273696,-151.0,0.00021021,2]
[379932719,1755442273706,-286.886124,0.00021021,2]
[379932721,1755442273716,-286.886128,0.00021021,2]
[379932723,1755442273725,-151.0,0.0002103,2]
[379932725,1755442273734,-151.0,0.0002103,2]
[379932727,1755442273744,-3000.0,0.0002103,2]
[379932729,1755442273754,-164.471479,0.0002103,2]
[379932731,1755442273763,-164.471485,0.0002103,2]
[379932733,1755442273773,-151.0,0.0002103,2]
[379932735,1755442273782,-3000.0,0.0002104,2]
[379932737,1755442273791,-227.68549792,0.00021041,2]
[379932739,1755442273801,-3000.0,0.0002105,2]
[379932741,1755442273811,-151.0,0.0002105,2]
[379932743,1755442273821,-177.072386,0.0002105,2]
[379932745,1755442273830,-420.5,0.00021051,3]
[379932747,1755442273840,-3000.0,0.0002106,2]
[379932749,1755442273849,-151.0,0.0002106,2]
[379932750,1755442273858,-151.0,0.0002106,2]
[379932753,1755442273868,-1500.0,0.00021068,2]
[379932755,1755442273878,-1500.0,0.00021068,2]
[379932757,1755442273887,-1000.88794389,0.00021068,2]
[379932759,1755442273897,-1500.0,0.00021068,2]
[379932761,1755442273907,-1500.0,0.00021068,2]
[379932763,1755442273917,-1502.75676969,0.00021068,2]
[379932765,1755442273927,-1500.0,0.00021068,2]
[379932767,1755442273937,-1008.92533935,0.00021068,2]
[379932769,1755442273946,-1500.0,0.00021068,2]
[379932771,1755442273955,-1500.0,0.00021068,2]
[379932772,1755442273964,-1632.39282419,0.00021068,2]
[379932774,1755442273974,-1197.46385721,0.00021068,2]
[379932776,1755442273984,-1500.0,0.00021068,2]
[379932778,1755442273993,-1500.0,0.00021068,2]
[379932780,1755442274003,-1500.0,0.00021068,2]
[379932782,1755442274012,-1500.0,0.00021068,2]
[379932784,1755442274022,-1500.0,0.00021068,2]
[379932786,1755442274031,-1500.0,0.00021068,2]
[379932788,1755442274041,-1018.37197599,0.00021068,2]
[379932790,1755442274050,-1500.0,0.00021068,2]
[379932792,1755442274059,-1500.0,0.00021068,2]
[379932794,1755442274070,-206.0,0.0002107,2]
[379932796,1755442274079,-151.0,0.0002107,2]
[379932798,1755442274088,-151.0,0.0002107,2]
[379932800,1755442274098,-151.0,0.0002107,2]
[379932802,1755442274107,-151.0,0.0002107,2]
[379932804,1755442274118,-3000.0,0.0002107,2]
[379932806,1755442274128,-151.0,0.0002107,2]
[379932808,1755442274137,-151.0,0.0002107,2]
[379932810,1755442274146,-151.0,0.0002107,2]
[379932812,1755442274155,-151.0,0.0002107,2]
[379932814,1755442274164,-186.0,0.00021074,7]
[379932815,1755442274174,-151.0,0.0002108,2]
[379932817,1755442274183,-151.0,0.0002108,2]
[379932819,1755442274192,-493.313819,0.0002108,2]